[Event "Charlotte Open 2020"]
[Site "Charlotte"]
[Date "2020.01.04"]
[Round "5.1"]
[White "Chandra, Akshat"]
[Black "Lenderman, Aleksandr"]
[Result "1-0"]
[ECO "B03"]
[WhiteElo "2524"]
[BlackElo "2638"]
[Annotator "RC"]
[PlyCount "81"]
[EventDate "2020.01.02"]
[EventType "swiss"]
[EventCountry "USA"]
[SourceTitle "playchess.com"]
[Source "ChessBase"]
[SourceQuality "1"]
[TimeControl "6000+30"]

1. e4 {[%emt 0:10:27]} Nf6 {[%emt 0:00:00]} 2. e5 {[%emt 0:01:00]} Nd5 {[%emt 0:00:00]} 3. d4 {[%emt 0:00:05]} d6 {[%emt 0:00:00]} 4. c4 {[%emt 0:00:25]} Nb6 {[%emt 0:00:00]} 5. f4 {[%emt 0:00:08]} dxe5 {[%emt 0:00:46]} 6. fxe5 {[%emt 0:00:14]} Nc6 {[%emt 0:00:14]} 7. Be3 {[%emt 0:00:13]} Bf5 {[%emt 0:01:12]} 8. Nc3 {[%emt 0:00:17]} e6 {[%emt 0:00:08]} 9. Nf3 {[%emt 0:01:32]} Bg4 {[%emt 0:02:10]} 10. Be2 {[%emt 0:14:47]} Bxf3 {[%emt 0:07:00]} 11. gxf3 {[%emt 0:00:04]} Qh4+ {[%emt 0:02:24]} 12. Bf2 {[%emt 0:00:15]} Qf4 {[%emt 0:00:15]} 13. c5 {[%emt 0:03:40]} Nd7 {[%emt 0:05:19]} 14. Qc1 {[%emt 0:07:36]} Qf5 {[%emt 0:06:02]} 15. Qb1 {[%emt 0:04:12]} Qxb1+ {[%emt 0:01:27]} 16. Rxb1 {[%emt 0:00:21]} O-O-O {[%emt 0:00:28]} 17. f4 {[%emt 0:05:34]} g6 {[%emt 0:02:06]} 18. Bf3 {[%emt 0:02:49]} Ne7 {[%emt 0:10:55]} 19. Bh4 {[%emt 0:12:04]} Re8 {[%emt 0:02:43]} 20. Bxe7 {[%emt 0:02:40]} Rxe7 {[%emt 0:00:26]} 21. c6 {[%emt 0:13:07]} bxc6 {[%emt 0:00:23]} 22. Bxc6 {[%emt 0:00:01]} Bh6 {[%emt 0:00:54]} 23. O-O {[%emt 0:00:48]} Rd8 {[%emt 0:01:14]} 24. Rbd1 {[%emt 0:04:42]} f6 {[%emt 0:05:13]} 25. Kg2 {[%emt 0:13:19]} Nb8 {[%emt 0:10:03]} 26. Ba4 {[%emt 0:00:01]} fxe5 {[%emt 0:02:02]} 27. fxe5 {[%emt 0:01:07]} Kb7 {[%emt 0:00:09]} 28. Rf3 {[%emt 0:04:04]} a5 {[%emt 0:11:10]} 29. Ne4 {[%emt 0:01:41]} Ka7 {[%emt 0:00:49]} 30. Nc5 {[%emt 0:04:57]} Na6 {[%emt 0:00:46]} 31. Nb3 {[%emt 0:00:31]} Rb8 {[%emt 0:02:27]} 32. a3 {[%emt 0:01:22]} Rb6 {[%emt 0:11:36]} 33. Rf2 {[%emt 0:00:09]} Ka8 {[%emt 0:10:29]} 34. Nxa5 {[%emt 0:00:22]} c5 {[%emt 0:00:00]} 35. dxc5 {[%emt 0:01:57]} Nxc5 {[%emt 0:00:38]} 36. Rd8+ {[%emt 0:00:07]} Rb8 {[%emt 0:00:25]} 37. Rxb8+ {[%emt 0:00:03]} Kxb8 {[%emt 0:00:03]} 38. Nc6+ {[%emt 0:00:03]} Kc7 {[%emt 0:00:10]} 39. Nxe7 {[%emt 0:00:04]} Nxa4 {[%emt 0:00:02]} 40. Rf7 {[%emt 0:01:45]} Kd8 {[%emt 0:00:24]} 41. Rxh7 {[%emt 0:00:11]} 1-0

[Event "Charlotte Open 2020"]
[Site "Charlotte"]
[Date "2020.01.04"]
[Round "5.15"]
[White "Guo, Arthur"]
[Black "Beradze, Irakli"]
[Result "1-0"]
[ECO "C88"]
[WhiteElo "2301"]
[BlackElo "2487"]
[Annotator "RC"]
[PlyCount "175"]
[EventDate "2020.01.02"]
[EventType "swiss"]
[EventCountry "USA"]
[SourceTitle "playchess.com"]
[Source "ChessBase"]
[SourceQuality "1"]
[TimeControl "6000+30"]

1. e4 {[%emt 1:40:30]} e5 {[%emt 1:40:30]} 2. Nf3 {[%emt 0:00:30]} Nc6 {[%emt 0:00:30]} 3. Bb5 {[%emt 0:00:30]} a6 {[%emt 0:00:30]} 4. Ba4 {[%emt 0:00:30]} Nf6 {[%emt 0:00:30]} 5. O-O {[%emt 0:00:30]} b5 {[%emt 0:00:30]} 6. Bb3 {[%emt 0:00:30]} Be7 {[%emt 0:00:30]} 7. Re1 {[%emt 0:00:30]} O-O {[%emt 0:00:30]} 8. d3 {[%emt 0:00:30]} d6 {[%emt 0:00:30]} 9. Bd2 {[%emt 0:00:30]} Re8 {[%emt 0:00:30]} 10. Ng5 {[%emt 0:00:30]} Rf8 {[%emt 0:00:30]} 11. c3 {[%emt 0:00:30]} h6 {[%emt 0:00:30]} 12. Nf3 {[%emt 0:00:30]} Re8 {[%emt 0:00:30]} 13. h3 {[%emt 0:00:30]} Bf8 {[%emt 0:00:30]} 14. a4 {[%emt 0:00:30]} Rb8 {[%emt 0:00:30]} 15. axb5 {[%emt 0:00:30]} axb5 {[%emt 0:00:30]} 16. Na3 {[%emt 0:00:30]} Na5 {[%emt 0:00:30]} 17. Ba2 {[%emt 0:00:30]} c5 {[%emt 0:00:30]} 18. Nc2 {[%emt 0:00:30]} c4 {[%emt 0:00:30]} 19. Nb4 {[%emt 0:00:30]} cxd3 {[%emt 0:00:30]} 20. Qb1 {[%emt 0:00:30]} Qc7 {[%emt 0:00:30]} 21. Nd5 {[%emt 0:00:30]} Nxd5 {[%emt 0:00:30]} 22. Bxd5 {[%emt 0:00:30]} Nc4 {[%emt 0:00:30]} 23. Be3 {[%emt 0:00:30]} Be6 {[%emt 0:00:30]} 24. Ba7 {[%emt 0:00:30]} Bxd5 {[%emt 0:00:30]} 25. Bxb8 {[%emt 0:00:30]} Qxb8 {[%emt 0:00:30]} 26. exd5 {[%emt 0:00:30]} e4 {[%emt 0:00:30]} 27. Nd4 {[%emt 0:00:30]} Qc8 {[%emt 0:00:30]} 28. f3 {[%emt 0:00:30]} f5 {[%emt 0:00:30]} 29. fxe4 {[%emt 0:00:30]} fxe4 {[%emt 0:00:30]} 30. Ne6 {[%emt 0:00:30]} Qb7 {[%emt 0:00:30]} 31. b3 {[%emt 0:00:30]} Nd2 {[%emt 0:00:30]} 32. Qd1 {[%emt 0:00:30]} Qxd5 {[%emt 0:00:30]} 33. Nf4 {[%emt 0:00:30]} Qc5+ {[%emt 0:00:30]} 34. Kh1 {[%emt 0:00:30]} e3 {[%emt 0:00:30]} 35. Nxd3 {[%emt 0:00:30]} Qxc3 {[%emt 0:00:30]} 36. Qh5 {[%emt 0:00:30]} Qc6 {[%emt 0:00:30]} 37. Nb4 {[%emt 0:00:30]} Qe4 {[%emt 0:00:30]} 38. Qd5+ {[%emt 0:00:30]} Kh7 39. Qxb5 {[%emt 0:00:30]} Nxb3 {[%emt 0:01:00]} 40. Ra3 {[%emt 0:00:30]} Nd4 {[%emt 0:00:30]} 41. Raxe3 {[%emt 0:00:30]} Nxb5 {[%emt 0:00:30]} 42. Rxe4 {[%emt 0:00:30]} Rxe4 {[%emt 0:00:30]} 43. Rxe4 {[%emt 0:00:30]} Nc7 {[%emt 0:00:30]} 44. Rc4 {[%emt 0:00:30]} Ne6 {[%emt 0:00:30]} 45. Kg1 {[%emt 0:00:30]} Kg6 {[%emt 0:00:30]} 46. Kf2 {[%emt 0:00:30]} Kf5 {[%emt 0:00:30]} 47. Ke3 {[%emt 0:00:30]} h5 {[%emt 0:00:30]} 48. Nd3 {[%emt 0:00:30]} g6 {[%emt 0:00:30]} 49. Ra4 {[%emt 0:00:30]} Bh6+ {[%emt 0:00:30]} 50. Kf3 {[%emt 0:00:30]} Ng5+ {[%emt 0:00:30]} 51. Ke2 {[%emt 0:00:30]} Ne6 {[%emt 0:00:30]} 52. Ra6 {[%emt 0:00:30]} Bf8 {[%emt 0:00:30]} 53. Ke3 {[%emt 0:00:30]} Bh6+ {[%emt 0:00:30]} 54. Kf3 {[%emt 0:00:30]} Nd4+ {[%emt 0:00:30]} 55. Kf2 {[%emt 0:00:30]} Bf8 {[%emt 0:00:30]} 56. Ke3 {[%emt 0:00:30]} Nc2+ {[%emt 0:00:30]} 57. Kd2 {[%emt 0:00:30]} Nd4 {[%emt 0:00:30]} 58. Ke3 {[%emt 0:00:30]} Nc2+ {[%emt 0:00:30]} 59. Kf2 {[%emt 0:00:30]} Nd4 {[%emt 0:00:30]} 60. Ra5+ {[%emt 0:00:30]} Ke4 {[%emt 0:00:30]} 61. Nb4 {[%emt 0:00:30]} Ne6 {[%emt 0:00:30]} 62. Nd5 {[%emt 0:00:30]} Bg7 {[%emt 0:00:30]} 63. Ne7 {[%emt 0:00:30]} Nf8 {[%emt 0:00:30]} 64. Ra4+ {[%emt 0:00:30]} Ke5 {[%emt 0:00:30]} 65. Ke3 {[%emt 0:00:30]} Bh6+ {[%emt 0:00:30]} 66. Kd3 {[%emt 0:00:30]} Bg5 {[%emt 0:00:30]} 67. Ra5+ {[%emt 0:00:30]} Kf6 {[%emt 0:00:30]} 68. Ng8+ {[%emt 0:00:30]} Kg7 {[%emt 0:00:30]} 69. Rxg5 {[%emt 0:00:30]} Kxg8 {[%emt 0:00:30]} 70. Rd5 {[%emt 0:00:30]} Kf7 {[%emt 0:00:30]} 71. Rxd6 {[%emt 0:00:30]} Ke7 {[%emt 0:00:30]} 72. Ra6 {[%emt 0:00:30]} Kf7 {[%emt 0:00:30]} 73. Ke4 {[%emt 0:00:30]} Kg7 {[%emt 0:00:30]} 74. Kf4 {[%emt 0:00:30]} Kh6 {[%emt 0:00:30]} 75. Ke5 {[%emt 0:00:30]} Nd7+ {[%emt 0:00:30]} 76. Kd6 {[%emt 0:00:30]} Nf6 {[%emt 0:00:30]} 77. Ke7 {[%emt 0:00:30]} Ne4 {[%emt 0:00:30]} 78. Kf7 {[%emt 0:00:30]} Ng5+ {[%emt 0:00:30]} 79. Kf8 {[%emt 0:00:30]} h4 {[%emt 0:00:30]} 80. Ra4 {[%emt 0:00:30]} Kh5 {[%emt 0:00:30]} 81. Ke7 {[%emt 0:00:30]} Nh7 {[%emt 0:00:30]} 82. Rg4 {[%emt 0:00:30]} Ng5 {[%emt 0:00:30]} 83. Kf6 {[%emt 0:00:30]} Nh7+ {[%emt 0:00:30]} 84. Kg7 {[%emt 0:00:30]} Ng5 {[%emt 0:00:30]} 85. Ra4 {[%emt 0:00:30]} Ne6+ {[%emt 0:00:30]} 86. Kf6 {[%emt 0:00:30]} Nf8 {[%emt 0:00:30]} 87. Ra6 {[%emt 0:00:30]} Nd7+ {[%emt 0:00:30]} 88. Ke7 {[%emt 0:00:30]} 1-0

[Event "Charlotte Open 2020"]
[Site "Charlotte"]
[Date "2020.01.04"]
[Round "5.17"]
[White "Kolay, Alex"]
[Black "Tsolakidou, Stavroula"]
[Result "0-1"]
[ECO "E11"]
[WhiteElo "2261"]
[BlackElo "2403"]
[Annotator "RC"]
[PlyCount "126"]
[EventDate "2020.01.02"]
[EventType "swiss"]
[EventCountry "USA"]
[SourceTitle "playchess.com"]
[Source "ChessBase"]
[SourceQuality "1"]
[TimeControl "6000+30"]

1. d4 {[%emt 1:40:30]} Nf6 {[%emt 1:40:30]} 2. c4 {[%emt 0:00:30]} e6 {[%emt 0:00:30]} 3. Nf3 {[%emt 0:00:30]} Bb4+ {[%emt 0:00:30]} 4. Nbd2 {[%emt 0:00:30]} d6 {[%emt 0:00:30]} 5. a3 {[%emt 0:00:30]} Bxd2+ {[%emt 0:00:30]} 6. Qxd2 {[%emt 0:00:30]} Nbd7 {[%emt 0:00:30]} 7. e3 {[%emt 0:00:30]} e5 {[%emt 0:00:30]} 8. Qc2 {[%emt 0:00:30]} Qe7 {[%emt 0:00:30]} 9. Be2 {[%emt 0:00:30]} O-O {[%emt 0:00:30]} 10. O-O {[%emt 0:00:30]} Re8 {[%emt 0:00:30]} 11. Re1 {[%emt 0:00:30]} c5 {[%emt 0:00:30]} 12. h3 {[%emt 0:00:30]} e4 {[%emt 0:00:30]} 13. Nh2 {[%emt 0:00:30]} Nf8 {[%emt 0:00:30]} 14. b4 {[%emt 0:00:30]} cxb4 {[%emt 0:00:30]} 15. axb4 {[%emt 0:00:30]} d5 {[%emt 0:00:30]} 16. c5 {[%emt 0:00:30]} h5 {[%emt 0:00:30]} 17. b5 {[%emt 0:00:30]} Qe6 {[%emt 0:00:30]} 18. Ba3 {[%emt 0:00:30]} Bd7 {[%emt 0:00:30]} 19. Rec1 {[%emt 0:00:30]} Rec8 {[%emt 0:00:30]} 20. Qd1 {[%emt 0:00:30]} Ng6 {[%emt 0:00:30]} 21. Ra2 {[%emt 0:00:30]} Nh4 {[%emt 0:00:30]} 22. Rac2 {[%emt 0:00:30]} g5 {[%emt 0:00:30]} 23. Bb4 {[%emt 0:00:30]} Kg7 {[%emt 0:00:30]} 24. Ra2 {[%emt 0:00:30]} Qf5 {[%emt 0:00:30]} 25. Rca1 {[%emt 0:00:30]} g4 {[%emt 0:00:30]} 26. Rxa7 Rxa7 {[%emt 0:00:30]} 27. Rxa7 gxh3 {[%emt 0:00:30]} 28. g3 {[%emt 0:01:30]} Nf3+ {[%emt 0:00:30]} 29. Bxf3 {[%emt 0:00:30]} exf3 {[%emt 0:00:30]} 30. Ra1 {[%emt 0:00:30]} h4 {[%emt 0:00:30]} 31. Qxf3 {[%emt 0:00:30]} Qg6 {[%emt 0:00:30]} 32. Qf4 {[%emt 0:00:30]} Bxb5 {[%emt 0:00:30]} 33. Qxh4 {[%emt 0:00:30]} Ra8 {[%emt 0:00:30]} 34. Rc1 {[%emt 0:00:30]} Bd7 {[%emt 0:00:30]} 35. Qf4 {[%emt 0:00:30]} Bf5 {[%emt 0:00:30]} 36. Be1 {[%emt 0:00:30]} Be4 {[%emt 0:00:30]} 37. f3 {[%emt 0:00:30]} Bd3 {[%emt 0:00:30]} 38. g4 {[%emt 0:00:30]} Ra2 {[%emt 0:00:30]} 39. Bh4 {[%emt 0:00:30]} Rg2+ {[%emt 0:00:30]} 40. Kh1 Ne4 {[%emt 0:00:30]} 41. Qe5+ {[%emt 0:01:00]} Kh7 {[%emt 0:00:30]} 42. Qxd5 {[%emt 0:00:30]} Rg3 {[%emt 0:00:30]} 43. Bxg3 {[%emt 0:00:30]} Nxg3+ {[%emt 0:00:30]} 44. Kg1 {[%emt 0:00:30]} Ne2+ {[%emt 0:00:30]} 45. Kf2 {[%emt 0:00:30]} Nxc1 {[%emt 0:00:30]} 46. Qxb7 {[%emt 0:00:30]} Qf6 {[%emt 0:00:30]} 47. Qc7 {[%emt 0:00:30]} Ne2 {[%emt 0:00:30]} 48. g5 {[%emt 0:00:30]} Qe6 {[%emt 0:00:30]} 49. Qa7 {[%emt 0:00:30]} Kg7 {[%emt 0:00:30]} 50. Qa3 {[%emt 0:00:30]} Qc4 {[%emt 0:00:30]} 51. Qb2 {[%emt 0:00:30]} Nc3 {[%emt 0:00:30]} 52. Kg3 {[%emt 0:00:30]} Bf5 {[%emt 0:00:30]} 53. Qd2 {[%emt 0:00:30]} Be6 {[%emt 0:00:30]} 54. Kf2 {[%emt 0:00:30]} Nb5 {[%emt 0:00:30]} 55. Qe2 {[%emt 0:00:30]} Qb4 {[%emt 0:00:30]} 56. Qc2 {[%emt 0:00:30]} Na3 {[%emt 0:00:30]} 57. Qc1 {[%emt 0:00:30]} Qb8 {[%emt 0:00:30]} 58. f4 {[%emt 0:00:30]} Qa8 {[%emt 0:00:30]} 59. c6 {[%emt 0:00:30]} Nc4 {[%emt 0:00:30]} 60. Qc3 {[%emt 0:00:30]} Qa2+ {[%emt 0:00:30]} 61. Ke1 {[%emt 0:00:30]} Bd5 {[%emt 0:00:30]} 62. e4 {[%emt 0:00:30]} Qxh2 {[%emt 0:00:30]} 63. exd5 {[%emt 0:00:30]} Qg2 {[%emt 0:00:30]} 0-1

[Event "Charlotte Open 2020"]
[Site "Charlotte"]
[Date "2020.01.04"]
[Round "6.1"]
[White "Grabinsky, Aaron"]
[Black "Chandra, Akshat"]
[Result "1/2-1/2"]
[ECO "A01"]
[WhiteElo "2363"]
[BlackElo "2524"]
[Annotator "ChessBase"]
[PlyCount "71"]
[EventDate "2020.01.02"]
[EventType "swiss"]
[EventCountry "USA"]
[SourceTitle "playchess.com"]
[Source "ChessBase"]
[SourceQuality "1"]
[TimeControl "6000+30"]

1. b3 {[%emt 0:00:00]} e5 {[%emt 0:00:39]} 2. Bb2 {[%emt 0:00:00]} Nc6 {[%emt 0:00:02]} 3. e3 {[%emt 0:00:00]} g6 {[%emt 0:00:17]} 4. d4 {[%emt 0:00:32]} Bg7 {[%emt 0:04:14]} 5. d5 {[%emt 0:00:27]} Nce7 {[%emt 0:01:00]} 6. c4 {[%emt 0:00:19]} d6 {[%emt 0:00:15]} 7. g3 {[%emt 0:01:09]} h5 {[%emt 0:09:55]} 8. h4 {[%emt 0:01:09]} Nh6 {[%emt 0:03:28]} 9. Bg2 {[%emt 0:02:47]} Ng4 {[%emt 0:03:18]} 10. Nc3 {[%emt 0:02:36]} O-O {[%emt 0:06:32]} 11. Nh3 {[%emt 0:02:53]} Nf5 {[%emt 0:03:53]} 12. Ne4 {[%emt 0:06:22]} Bd7 {[%emt 0:07:49]} 13. Qe2 {[%emt 0:03:04]} c6 {[%emt 0:02:14]} 14. dxc6 {[%emt 0:03:36]} Bxc6 {[%emt 0:02:13]} 15. Nhg5 {[%emt 0:08:56]} Qb6 {[%emt 0:09:53]} 16. Bf3 {[%emt 0:09:18]} d5 {[%emt 0:08:37]} 17. cxd5 {[%emt 0:00:54]} Bxd5 {[%emt 0:00:31]} 18. O-O {[%emt 0:05:27]} f6 {[%emt 0:04:19]} 19. Nh3 {[%emt 0:00:38]} Rfd8 {[%emt 0:04:33]} 20. Nc3 {[%emt 0:13:01]} Bxf3 {[%emt 0:01:15]} 21. Qxf3 {[%emt 0:00:05]} Rd2 {[%emt 0:13:26]} 22. Rfd1 {[%emt 0:00:57]} Rad8 {[%emt 0:02:11]} 23. Rxd2 {[%emt 0:01:34]} Rxd2 {[%emt 0:00:03]} 24. Rd1 {[%emt 0:00:22]} Qd8 {[%emt 0:00:50]} 25. Rxd2 {[%emt 0:00:19]} Qxd2 {[%emt 0:00:01]} 26. Qd5+ {[%emt 0:00:30]} Qxd5 {[%emt 0:00:02]} 27. Nxd5 {[%emt 0:00:08]} Kf7 {[%emt 0:00:17]} 28. e4 {[%emt 0:00:41]} Ne7 {[%emt 0:01:37]} 29. Nb4 {[%emt 0:01:48]} Ke6 {[%emt 0:00:49]} 30. Kf1 {[%emt 0:00:14]} Bf8 {[%emt 0:00:46]} 31. Ke2 {[%emt 0:00:32]} a5 {[%emt 0:00:33]} 32. Nd3 {[%emt 0:00:45]} Nc6 {[%emt 0:00:07]} 33. a4 {[%emt 0:01:31]} Be7 {[%emt 0:00:20]} 34. Ng1 {[%emt 0:01:53]} f5 {[%emt 0:04:21]} 35. exf5+ {[%emt 0:01:18]} gxf5 {[%emt 0:00:37]} 36. Nf3 {[%emt 0:03:31]} 1/2-1/2

[Event "Charlotte Open 2020"]
[Site "Charlotte"]
[Date "2020.01.04"]
[Round "6.5"]
[White "Ringoir, Tanguy"]
[Black "Korley, Kassa"]
[Result "0-1"]
[ECO "B08"]
[WhiteElo "2501"]
[BlackElo "2432"]
[Annotator "ChessBase"]
[PlyCount "40"]
[EventDate "2020.01.02"]
[EventType "swiss"]
[EventCountry "USA"]
[SourceTitle "playchess.com"]
[Source "ChessBase"]
[SourceQuality "1"]
[TimeControl "6000+30"]

1. d4 {[%emt 0:00:11]} g6 {[%emt 0:00:00]} 2. e4 {[%emt 0:00:18]} Bg7 {[%emt 0:00:00]} 3. Nf3 {[%emt 0:03:22]} d6 {[%emt 0:00:00]} 4. Be2 {[%emt 0:00:04]} Nf6 {[%emt 0:00:00]} 5. Nc3 {[%emt 0:00:04]} O-O {[%emt 0:00:03]} 6. O-O {[%emt 0:00:10]} Nc6 {[%emt 0:00:12]} 7. Be3 {[%emt 0:00:37]} e5 {[%emt 0:03:25]} 8. dxe5 {[%emt 0:00:05]} dxe5 {[%emt 0:01:40]} 9. Bb5 {[%emt 0:00:06]} Qe7 {[%emt 0:03:30]} 10. Bxc6 {[%emt 0:00:06]} bxc6 {[%emt 0:00:02]} 11. Ne1 {[%emt 0:00:05]} Ba6 {[%emt 0:17:13]} 12. Nd3 {[%emt 0:00:30]} Rfd8 {[%emt 0:00:06]} 13. Bg5 {[%emt 0:14:50]} h6 {[%emt 0:16:49]} 14. Bh4 {[%emt 0:00:19]} Rab8 {[%emt 0:02:14]} 15. Rb1 {[%emt 0:03:29]} Qe6 {[%emt 0:11:10]} 16. Qf3 {[%emt 0:02:44]} Bxd3 {[%emt 0:00:08]} 17. cxd3 {[%emt 0:00:02]} Rd4 {[%emt 0:06:00]} 18. b3 {[%emt 0:04:11]} Nd7 {[%emt 0:03:09]} 19. Na4 {[%emt 0:04:28]} Qd6 {[%emt 0:00:11]} 20. Rfd1 {[%emt 0:01:53]} f5 {[%emt 0:03:49]} 0-1

[Event "Charlotte Open 2020"]
[Site "Charlotte"]
[Date "2020.01.04"]
[Round "6.9"]
[White "Narva, Mai"]
[Black "Yoo, Christopher Woojin"]
[Result "1-0"]
[ECO "B51"]
[WhiteElo "2321"]
[BlackElo "2456"]
[Annotator "RC"]
[PlyCount "101"]
[EventDate "2020.01.02"]
[EventType "swiss"]
[EventCountry "USA"]
[SourceTitle "playchess.com"]
[Source "ChessBase"]
[SourceQuality "1"]
[TimeControl "6000+30"]

1. e4 {[%emt 0:05:02]} c5 {[%emt 0:00:00]} 2. Nf3 {[%emt 0:00:13]} d6 {[%emt 0:00:00]} 3. Bb5+ {[%emt 0:00:31]} Nd7 {[%emt 0:00:00]} 4. O-O {[%emt 0:00:27]} a6 {[%emt 0:00:03]} 5. Bxd7+ {[%emt 0:04:43]} Bxd7 {[%emt 0:00:05]} 6. d4 {[%emt 0:01:03]} cxd4 {[%emt 0:00:04]} 7. Qxd4 {[%emt 0:00:34]} e5 {[%emt 0:00:06]} 8. Qd3 {[%emt 0:04:26]} Rc8 {[%emt 0:00:09]} 9. a4 {[%emt 0:06:43]} Qc7 {[%emt 0:03:46]} 10. Nc3 {[%emt 0:06:19]} h6 {[%emt 0:02:06]} 11. Rd1 {[%emt 0:07:15]} Nf6 {[%emt 0:00:15]} 12. Nd2 {[%emt 0:02:14]} Bg4 {[%emt 0:00:39]} 13. Re1 {[%emt 0:03:06]} Be7 {[%emt 0:01:40]} 14. Nf1 {[%emt 0:11:10]} O-O {[%emt 0:01:53]} 15. Qg3 {[%emt 0:11:01]} Kh8 {[%emt 0:18:31]} 16. Ne3 {[%emt 0:03:48]} Be6 {[%emt 0:00:21]} 17. Bd2 {[%emt 0:01:52]} Qd7 {[%emt 0:08:11]} 18. Qf3 {[%emt 0:08:12]} g6 {[%emt 0:07:40]} 19. Ncd5 {[%emt 0:07:16]} Bxd5 {[%emt 0:00:19]} 20. exd5 {[%emt 0:01:36]} Kg7 {[%emt 0:08:26]} 21. b3 {[%emt 0:04:37]} Bd8 {[%emt 0:04:28]} 22. a5 {[%emt 0:03:26]} Re8 {[%emt 0:04:38]} 23. Nc4 {[%emt 0:03:54]} Rc5 {[%emt 0:04:38]} 24. Rad1 {[%emt 0:01:42]} Rb5 {[%emt 0:06:02]} 25. Bc3 {[%emt 0:05:19]} Bc7 {[%emt 0:03:25]} 26. Na3 {[%emt 0:03:02]} Rxa5 {[%emt 0:00:42]} 27. Bxa5 {[%emt 0:00:12]} Bxa5 {[%emt 0:00:05]} 28. Re2 {[%emt 0:01:34]} Bb6 {[%emt 0:05:00]} 29. c4 {[%emt 0:01:21]} Bc5 {[%emt 0:01:45]} 30. Nb1 {[%emt 0:01:06]} Nh5 {[%emt 0:04:38]} 31. g3 {[%emt 0:00:55]} f5 {[%emt 0:01:06]} 32. Nd2 {[%emt 0:00:48]} a5 {[%emt 0:02:24]} 33. Kg2 {[%emt 0:00:19]} Nf6 {[%emt 0:02:13]} 34. Qc3 {[%emt 0:00:19]} b6 {[%emt 0:05:14]} 35. Rde1 {[%emt 0:00:44]} Rf8 {[%emt 0:04:58]} 36. f4 {[%emt 0:00:33]} Bb4 {[%emt 0:05:00]} 37. Qb2 {[%emt 0:00:24]} e4 {[%emt 0:00:23]} 38. Qd4 {[%emt 0:00:38]} Bc5 {[%emt 0:00:27]} 39. Qb2 {[%emt 0:00:11]} Kh7 {[%emt 0:01:55]} 40. h3 {[%emt 0:00:27]} g5 {[%emt 0:03:13]} 41. fxg5 {[%emt 0:00:37]} hxg5 {[%emt 0:01:08]} 42. Rf1 {[%emt 0:00:18]} e3 {[%emt 0:02:19]} 43. Nf3 {[%emt 0:00:40]} Ne4 {[%emt 0:00:10]} 44. Nd4 {[%emt 0:00:37]} f4 {[%emt 0:01:23]} 45. Ne6 {[%emt 0:00:20]} f3+ {[%emt 0:00:30]} 46. Rxf3 {[%emt 0:00:31]} Rxf3 {[%emt 0:00:28]} 47. Kxf3 {[%emt 0:00:16]} Nd2+ {[%emt 0:00:18]} 48. Kg2 {[%emt 0:01:03]} Qe7 {[%emt 0:00:43]} 49. Qc3 {[%emt 0:00:31]} Kg8 {[%emt 0:00:31]} 50. Rxe3 {[%emt 0:00:30]} Qf7 {[%emt 0:00:27]} 51. Qxd2 {[%emt 0:00:19]} 1-0

[Event "Charlotte Open 2020"]
[Site "Charlotte"]
[Date "2020.01.04"]
[Round "6.12"]
[White "Daggupati, Balaji"]
[Black "Song, Edward"]
[Result "0-1"]
[ECO "B67"]
[WhiteElo "2311"]
[BlackElo "2411"]
[Annotator "ChessBase"]
[PlyCount "84"]
[EventDate "2020.01.02"]
[EventType "swiss"]
[EventCountry "USA"]
[SourceTitle "playchess.com"]
[Source "ChessBase"]
[SourceQuality "1"]
[TimeControl "6000+30"]

1. e4 {[%emt 1:40:30]} c5 {[%emt 1:40:30]} 2. Nf3 {[%emt 0:00:30]} Nc6 {[%emt 0:00:30]} 3. d4 {[%emt 0:00:30]} cxd4 {[%emt 0:00:30]} 4. Nxd4 {[%emt 0:00:30]} Nf6 {[%emt 0:00:30]} 5. Nc3 {[%emt 0:00:30]} d6 {[%emt 0:00:30]} 6. Bg5 {[%emt 0:00:30]} e6 {[%emt 0:00:30]} 7. Qd2 {[%emt 0:00:30]} a6 {[%emt 0:00:30]} 8. O-O-O {[%emt 0:00:30]} Bd7 {[%emt 0:00:30]} 9. f4 {[%emt 0:00:30]} b5 {[%emt 0:00:30]} 10. Nxc6 {[%emt 0:00:30]} Bxc6 {[%emt 0:00:30]} 11. Qe1 {[%emt 0:00:30]} Be7 {[%emt 0:00:30]} 12. Bd3 {[%emt 0:00:30]} Nd7 {[%emt 0:00:30]} 13. Bxe7 {[%emt 0:00:30]} Qxe7 {[%emt 0:00:30]} 14. Qg3 {[%emt 0:00:30]} O-O {[%emt 0:00:30]} 15. Rhe1 {[%emt 0:00:30]} Nc5 {[%emt 0:00:30]} 16. e5 {[%emt 0:00:30]} dxe5 {[%emt 0:00:30]} 17. Rxe5 {[%emt 0:00:30]} Nxd3+ {[%emt 0:00:30]} 18. Rxd3 {[%emt 0:00:30]} Rfd8 {[%emt 0:00:30]} 19. Rxd8+ {[%emt 0:00:30]} Rxd8 {[%emt 0:00:30]} 20. Re1 {[%emt 0:00:30]} Qc5 {[%emt 0:00:30]} 21. Rd1 {[%emt 0:00:30]} Rxd1+ {[%emt 0:00:30]} 22. Nxd1 {[%emt 0:00:30]} h6 {[%emt 0:00:30]} 23. Ne3 {[%emt 0:00:30]} Qd4 {[%emt 0:00:30]} 24. a3 {[%emt 0:00:30]} Kh7 {[%emt 0:00:30]} 25. Qf2 {[%emt 0:00:30]} Bxg2 {[%emt 0:00:30]} 26. c3 {[%emt 0:00:30]} Qc5 {[%emt 0:00:30]} 27. Qd2 {[%emt 0:00:30]} Be4 {[%emt 0:00:30]} 28. b4 {[%emt 0:00:30]} Qc7 {[%emt 0:00:30]} 29. Nd1 {[%emt 0:00:30]} Qc4 {[%emt 0:00:30]} 30. Kb2 {[%emt 0:00:30]} Bd5 {[%emt 0:00:30]} 31. Kc1 {[%emt 0:00:30]} Qf1 {[%emt 0:00:30]} 32. Kb2 {[%emt 0:00:30]} Be4 {[%emt 0:00:30]} 33. Kb3 {[%emt 0:00:30]} Bf3 {[%emt 0:00:30]} 34. Nb2 {[%emt 0:00:30]} Bd5+ {[%emt 0:00:30]} 35. Kc2 {[%emt 0:00:30]} Qa1 {[%emt 0:00:30]} 36. c4 {[%emt 0:00:30]} bxc4 {[%emt 0:00:30]} 37. a4 {[%emt 0:00:30]} Be4+ {[%emt 0:00:30]} 38. Kc3 {[%emt 0:00:30]} Qa2 {[%emt 0:00:30]} 39. Nxc4 {[%emt 0:00:30]} Qxa4 {[%emt 0:00:30]} 40. Ne5 {[%emt 0:00:30]} f6 {[%emt 0:00:30]} 41. Nd7 {[%emt 0:00:30]} a5 {[%emt 0:00:30]} 42. Qd6 {[%emt 0:00:30]} Qc2+ {[%emt 0:00:30]} 0-1